[Event "Titled Tuesday Blitz February 14 Early 2023"]
[White "Fiorito, Francisco"]
[Black "Durarbayli, Vasif"]
[WhiteFideId "180165"]
[BlackFideId "13402935"]
[WhiteElo "2305"]
[BlackElo "2627"]
[Result "0-1"]
[Round "01"]
[TimeControl "180+2"]
[Date "2023.02.15"]
[WhiteClock "0:00:05"]
[BlackClock "0:00:08"]

1. d4 {[%clk 0:03:00]}  Nf6 {[%clk 0:02:57]} 2. Nc3 {[%clk 0:03:01]}  d5 {[%clk 0:02:57]} 3. Bf4 {[%clk 0:03:01]}  c5 {[%clk 0:02:52]} 4. e3 {[%clk 0:03:01]}  cxd4 {[%clk 0:02:42]} 5. exd4 {[%clk 0:02:59]}  a6 {[%clk 0:02:42]} 6. Nf3 {[%clk 0:02:58]}  Bg4 {[%clk 0:02:39]} 7. h3 {[%clk 0:02:56]}  Bxf3 {[%clk 0:02:39]} 8. Qxf3 {[%clk 0:02:56]}  Nc6 {[%clk 0:02:39]} 9. O-O-O {[%clk 0:02:56]}  e6 {[%clk 0:02:35]} 10. g4 {[%clk 0:02:51]}  Qa5 {[%clk 0:02:21]} 11. Kb1 {[%clk 0:02:15]}  Rc8 {[%clk 0:02:01]} 12. g5 {[%clk 0:01:01]}  Nd7 {[%clk 0:01:59]} 13. Qe3 {[%clk 0:00:50]}  Nb6 {[%clk 0:01:46]} 14. Qe1 {[%clk 0:00:26]}  Bb4 {[%clk 0:01:25]} 15. Bd2 {[%clk 0:00:25]}  Nxd4 {[%clk 0:01:22]} 16. Qe3 {[%clk 0:00:19]}  Nf5 {[%clk 0:01:13]} 17. Qe5 {[%clk 0:00:19]}  O-O {[%clk 0:00:56]} 18. Bd3 {[%clk 0:00:18]}  Nc4 {[%clk 0:00:46]} 19. Bxc4 {[%clk 0:00:18]}  Rxc4 {[%clk 0:00:47]} 20. a3 {[%clk 0:00:18]}  Bd6 {[%clk 0:00:40]} 21. Qe1 {[%clk 0:00:12]}  Qb6 {[%clk 0:00:39]} 22. Ka1 {[%clk 0:00:13]}  Nd4 {[%clk 0:00:34]} 23. Rc1 {[%clk 0:00:13]}  Rfc8 {[%clk 0:00:31]} 24. Qe3 {[%clk 0:00:10]}  Qc6 {[%clk 0:00:20]} 25. Rhd1 {[%clk 0:00:09]}  b5 {[%clk 0:00:20]} 26. Be1 {[%clk 0:00:07]}  Nf5 {[%clk 0:00:21]} 27. Qf3 {[%clk 0:00:04]}  g6 {[%clk 0:00:19]} 28. h4 {[%clk 0:00:02]}  Nxh4 {[%clk 0:00:13]} 29. Qh3 {[%clk 0:00:03]}  Nf5 {[%clk 0:00:14]} 30. Bd2 {[%clk 0:00:03]}  Rh4 {[%clk 0:00:14]} 31. Qf3 {[%clk 0:00:03]}  b4 {[%clk 0:00:12]} 32. axb4 {[%clk 0:00:03]}  Bxb4 {[%clk 0:00:12]} 33. Rh1 {[%clk 0:00:04]}  Nd4 {[%clk 0:00:09]} 34. Qd3 {[%clk 0:00:03]}  Rxh1 {[%clk 0:00:06]} 35. Rxh1 {[%clk 0:00:04]}  Nf5 {[%clk 0:00:07]} 36. Qh3 {[%clk 0:00:04]}  h5 {[%clk 0:00:07]} 37. gxh6 {[%clk 0:00:04]}  Kh7 {[%clk 0:00:08]} 38. Qd3 {[%clk 0:00:04]}  Be7 {[%clk 0:00:06]} 39. Kb1 {[%clk 0:00:05]}  Bf6 {[%clk 0:00:06]} 40. Re1 {[%clk 0:00:05]}  a5 {[%clk 0:00:06]} 41. Qb5 {[%clk 0:00:03]}  Qxb5 {[%clk 0:00:05]} 42. Nxb5 {[%clk 0:00:04]}  Rb8 {[%clk 0:00:06]} 43. Nc3 {[%clk 0:00:03]}  Nd6 {[%clk 0:00:06]} 44. Na4 {[%clk 0:00:03]}  Nc4 {[%clk 0:00:07]} 45. Bc1 {[%clk 0:00:04]}  Na3+ {[%clk 0:00:06]} 46. Ka2 {[%clk 0:00:04]}  Nxc2 {[%clk 0:00:07]} 47. Re2 {[%clk 0:00:05]}  Nb4+ {[%clk 0:00:08]} 48. Kb1 {[%clk 0:00:05]}  Rc8 {[%clk 0:00:08]} 49. Bd2 {[%clk 0:00:04]}  Nd3 {[%clk 0:00:08]} 50. Bc3 {[%clk 0:00:04]}  Bxc3 {[%clk 0:00:07]} 51. Nxc3 {[%clk 0:00:05]}  Rb8 {[%clk 0:00:06]} 52. Rd2 {[%clk 0:00:05]}  Ne5 {[%clk 0:00:07]} 53. f4 {[%clk 0:00:05]}  Nc4 {[%clk 0:00:07]} 54. Rf2 {[%clk 0:00:05]}  Kxh6 {[%clk 0:00:07]} 55. Nd1 {[%clk 0:00:05]}  Kg7 {[%clk 0:00:07]} 56. Re2 {[%clk 0:00:05]}  a4 {[%clk 0:00:08]} 57. Kc2 {[%clk 0:00:05]}  a3 {[%clk 0:00:08]} 58. b3 {[%clk 0:00:05]}  a2 {[%clk 0:00:08]} 0-1


[Site "https://www.chess.com"]

[Event "Titled Tuesday Blitz February 14 Early 2023"]
[White "Bok, Benjamin"]
[Black "Andreev, Konstantin"]
[WhiteFideId "1017063"]
[BlackFideId "24239305"]
[WhiteElo "2607"]
[BlackElo "2195"]
[Result "1-0"]
[Round "01"]
[TimeControl "180+2"]
[Date "2023.02.15"]
[WhiteClock "0:00:25"]
[BlackClock "0:00:14"]

1. d4 {[%clk 0:03:00]}  Nf6 {[%clk 0:03:00]} 2. c4 {[%clk 0:02:59]}  e6 {[%clk 0:03:00]} 3. Nc3 {[%clk 0:02:57]}  Bb4 {[%clk 0:03:01]} 4. Qc2 {[%clk 0:02:58]}  O-O {[%clk 0:03:01]} 5. a3 {[%clk 0:02:58]}  Bxc3+ {[%clk 0:02:59]} 6. Qxc3 {[%clk 0:02:58]}  d5 {[%clk 0:02:59]} 7. Bg5 {[%clk 0:02:58]}  h6 {[%clk 0:02:58]} 8. Bxf6 {[%clk 0:02:57]}  Qxf6 {[%clk 0:02:58]} 9. Nf3 {[%clk 0:02:58]}  Nd7 {[%clk 0:02:51]} 10. cxd5 {[%clk 0:02:12]}  exd5 {[%clk 0:02:52]} 11. Qxc7 {[%clk 0:02:12]}  Nb6 {[%clk 0:02:52]} 12. e3 {[%clk 0:02:11]}  Bf5 {[%clk 0:02:25]} 13. Qe5 {[%clk 0:02:10]}  Qxe5 {[%clk 0:02:21]} 14. Nxe5 {[%clk 0:02:11]}  Rac8 {[%clk 0:02:21]} 15. Bd3 {[%clk 0:02:10]}  Be4 {[%clk 0:02:11]} 16. Bxe4 {[%clk 0:01:00]}  dxe4 {[%clk 0:02:12]} 17. Kd2 {[%clk 0:00:52]}  f6 {[%clk 0:02:11]} 18. Ng6 {[%clk 0:00:52]}  Nc4+ {[%clk 0:01:41]} 19. Ke2 {[%clk 0:00:51]}  Rf7 {[%clk 0:01:40]} 20. Rhc1 {[%clk 0:00:49]}  Kh7 {[%clk 0:00:59]} 21. b3 {[%clk 0:00:43]}  Nb6 {[%clk 0:00:48]} 22. Rxc8 {[%clk 0:00:42]}  Nxc8 {[%clk 0:00:49]} 23. Rc1 {[%clk 0:00:41]}  Nb6 {[%clk 0:00:44]} 24. Nf4 {[%clk 0:00:41]}  Re7 {[%clk 0:00:40]} 25. a4 {[%clk 0:00:36]}  g5 {[%clk 0:00:37]} 26. a5 {[%clk 0:00:37]}  gxf4 {[%clk 0:00:20]} 27. axb6 {[%clk 0:00:37]}  axb6 {[%clk 0:00:20]} 28. exf4 {[%clk 0:00:38]}  Kg6 {[%clk 0:00:21]} 29. g4 {[%clk 0:00:37]}  f5 {[%clk 0:00:19]} 30. h3 {[%clk 0:00:35]}  Kf6 {[%clk 0:00:18]} 31. Ke3 {[%clk 0:00:34]}  Ke6 {[%clk 0:00:17]} 32. Rc4 {[%clk 0:00:30]}  Rg7 {[%clk 0:00:16]} 33. gxf5+ {[%clk 0:00:22]}  Kxf5 {[%clk 0:00:17]} 34. Rb4 {[%clk 0:00:22]}  Rg6 {[%clk 0:00:16]} 35. Rb5+ {[%clk 0:00:22]}  Kf6 {[%clk 0:00:15]} 36. Rxb6+ {[%clk 0:00:23]}  Kf5 {[%clk 0:00:14]} 37. Rxg6 {[%clk 0:00:24]}  Kxg6 {[%clk 0:00:15]} 38. Kxe4 {[%clk 0:00:24]}  Kf6 {[%clk 0:00:14]} 39. d5 {[%clk 0:00:25]} 1-0


[Site "https://www.chess.com"]

[Event "Titled Tuesday Blitz February 14 Early 2023"]
[White "Donskov, Anatoly"]
[Black "Demchenko, Anton"]
[WhiteFideId "24143413"]
[BlackFideId "4160258"]
[WhiteElo "2279"]
[BlackElo "2623"]
[Result "0-1"]
[Round "01"]
[TimeControl "180+2"]
[Date "2023.02.15"]
[WhiteClock "0:00:16"]
[BlackClock "0:00:13"]

1. e4 {[%clk 0:02:59]}  e5 {[%clk 0:02:55]} 2. Nf3 {[%clk 0:02:59]}  Nc6 {[%clk 0:02:56]} 3. Bb5 {[%clk 0:02:59]}  a6 {[%clk 0:02:55]} 4. Ba4 {[%clk 0:02:59]}  Nf6 {[%clk 0:02:51]} 5. Qe2 {[%clk 0:02:59]}  d6 {[%clk 0:02:42]} 6. c3 {[%clk 0:02:55]}  Bd7 {[%clk 0:02:40]} 7. O-O {[%clk 0:02:54]}  g6 {[%clk 0:02:38]} 8. Rd1 {[%clk 0:02:53]}  Bg7 {[%clk 0:02:30]} 9. d4 {[%clk 0:02:50]}  Qe7 {[%clk 0:02:29]} 10. dxe5 {[%clk 0:02:34]}  Nxe5 {[%clk 0:02:21]} 11. Bxd7+ {[%clk 0:02:31]}  Nexd7 {[%clk 0:02:20]} 12. Re1 {[%clk 0:02:22]}  O-O {[%clk 0:02:19]} 13. Bg5 {[%clk 0:02:21]}  h6 {[%clk 0:02:17]} 14. Bh4 {[%clk 0:02:20]}  Rfe8 {[%clk 0:01:58]} 15. Nbd2 {[%clk 0:02:15]}  b5 {[%clk 0:01:47]} 16. a4 {[%clk 0:01:59]}  bxa4 {[%clk 0:01:33]} 17. Rxa4 {[%clk 0:02:00]}  Nc5 {[%clk 0:01:32]} 18. Rc4 {[%clk 0:01:52]}  g5 {[%clk 0:01:12]} 19. Bg3 {[%clk 0:01:50]}  d5 {[%clk 0:01:12]} 20. Rb4 {[%clk 0:01:09]}  dxe4 {[%clk 0:00:43]} 21. Nd4 {[%clk 0:01:06]}  Nd3 {[%clk 0:00:35]} 22. Nf5 {[%clk 0:01:02]}  Qe6 {[%clk 0:00:32]} 23. Nxg7 {[%clk 0:01:01]}  Kxg7 {[%clk 0:00:33]} 24. Rxe4 {[%clk 0:00:24]}  Nxe4 {[%clk 0:00:27]} 25. Qxd3 {[%clk 0:00:24]}  Rad8 {[%clk 0:00:19]} 26. Qxd8 {[%clk 0:00:15]}  Rxd8 {[%clk 0:00:18]} 27. Nxe4 {[%clk 0:00:16]}  f5 {[%clk 0:00:13]} 0-1


[Site "https://www.chess.com"]

[Event "Titled Tuesday Blitz February 14 Early 2023"]
[White "Timofeev, Artyom"]
[Black "Khamdamova, Afruza"]
[WhiteFideId "4140419"]
[BlackFideId "14210444"]
[WhiteElo "2567"]
[BlackElo "2162"]
[Result "1-0"]
[Round "01"]
[TimeControl "180+2"]
[Date "2023.02.15"]
[WhiteClock "0:00:23"]
[BlackClock "0:00:14"]

1. e4 {[%clk 0:02:57]}  e5 {[%clk 0:03:00]} 2. Nf3 {[%clk 0:02:57]}  Nf6 {[%clk 0:03:00]} 3. Nxe5 {[%clk 0:02:56]}  d6 {[%clk 0:03:00]} 4. Nf3 {[%clk 0:02:56]}  Nxe4 {[%clk 0:03:01]} 5. Qe2 {[%clk 0:02:55]}  Qe7 {[%clk 0:03:01]} 6. d3 {[%clk 0:02:54]}  Nf6 {[%clk 0:03:01]} 7. Bg5 {[%clk 0:02:53]}  Qxe2+ {[%clk 0:02:55]} 8. Bxe2 {[%clk 0:02:52]}  Be7 {[%clk 0:02:56]} 9. Nc3 {[%clk 0:02:52]}  c6 {[%clk 0:02:56]} 10. O-O-O {[%clk 0:02:51]}  O-O {[%clk 0:02:56]} 11. h3 {[%clk 0:02:51]}  d5 {[%clk 0:02:52]} 12. d4 {[%clk 0:02:44]}  Bf5 {[%clk 0:02:51]} 13. g4 {[%clk 0:02:43]}  Bg6 {[%clk 0:02:46]} 14. Ne5 {[%clk 0:02:43]}  Re8 {[%clk 0:02:33]} 15. h4 {[%clk 0:02:38]}  h6 {[%clk 0:02:25]} 16. Bf4 {[%clk 0:02:37]}  Nbd7 {[%clk 0:02:15]} 17. g5 {[%clk 0:02:32]}  Nh5 {[%clk 0:01:42]} 18. Nxg6 {[%clk 0:02:30]}  fxg6 {[%clk 0:01:40]} 19. Be3 {[%clk 0:02:30]}  Bd6 {[%clk 0:01:31]} 20. Bxh5 {[%clk 0:02:27]}  gxh5 {[%clk 0:01:31]} 21. gxh6 {[%clk 0:02:27]}  gxh6 {[%clk 0:01:28]} 22. Bxh6 {[%clk 0:02:26]}  Nf6 {[%clk 0:01:25]} 23. f3 {[%clk 0:02:19]}  Kf7 {[%clk 0:01:21]} 24. Bg5 {[%clk 0:02:17]}  Bb4 {[%clk 0:01:13]} 25. Kd2 {[%clk 0:01:58]}  Nd7 {[%clk 0:01:07]} 26. a3 {[%clk 0:01:55]}  Bd6 {[%clk 0:01:06]} 27. Ne2 {[%clk 0:01:45]}  Nb6 {[%clk 0:01:05]} 28. Nf4 {[%clk 0:01:37]}  Nc4+ {[%clk 0:01:05]} 29. Kc1 {[%clk 0:01:36]}  Bxf4+ {[%clk 0:00:58]} 30. Bxf4 {[%clk 0:01:36]}  Re2 {[%clk 0:00:58]} 31. a4 {[%clk 0:01:34]}  Rae8 {[%clk 0:00:54]} 32. b3 {[%clk 0:01:33]}  Ne3 {[%clk 0:00:54]} 33. Rd2 {[%clk 0:01:29]}  Nf5 {[%clk 0:00:49]} 34. Be5 {[%clk 0:01:26]}  Rxd2 {[%clk 0:00:46]} 35. Kxd2 {[%clk 0:01:26]}  Rg8 {[%clk 0:00:45]} 36. Rh2 {[%clk 0:01:22]}  Rg1 {[%clk 0:00:43]} 37. c4 {[%clk 0:01:13]}  Rf1 {[%clk 0:00:42]} 38. cxd5 {[%clk 0:01:10]}  cxd5 {[%clk 0:00:42]} 39. Kc3 {[%clk 0:01:06]}  Rxf3+ {[%clk 0:00:40]} 40. Kb4 {[%clk 0:01:06]}  Ne7 {[%clk 0:00:35]} 41. Rg2 {[%clk 0:01:00]}  Ke6 {[%clk 0:00:33]} 42. Rg5 {[%clk 0:00:57]}  Rf5 {[%clk 0:00:30]} 43. Rg7 {[%clk 0:00:41]}  Nc6+ {[%clk 0:00:30]} 44. Kc5 {[%clk 0:00:40]}  Ne7 {[%clk 0:00:27]} 45. Rh7 {[%clk 0:00:39]}  Rf3 {[%clk 0:00:20]} 46. Rh6+ {[%clk 0:00:34]}  Kd7 {[%clk 0:00:20]} 47. Bf6 {[%clk 0:00:27]}  Rxb3 {[%clk 0:00:17]} 48. Bxe7 {[%clk 0:00:25]}  Re3 {[%clk 0:00:17]} 49. Bg5 {[%clk 0:00:24]}  Ra3 {[%clk 0:00:15]} 50. Kxd5 {[%clk 0:00:24]}  Rxa4 {[%clk 0:00:14]} 51. Rh7+ {[%clk 0:00:24]}  Ke8 {[%clk 0:00:14]} 52. Ke6 {[%clk 0:00:23]} 1-0


[Site "https://www.chess.com"]

[Event "Titled Tuesday Blitz February 14 Early 2023"]
[White "Ponce Cano, Adrian"]
[Black "Sanal, Vahap"]
[WhiteFideId "22296913"]
[BlackFideId "6300545"]
[WhiteElo "2210"]
[BlackElo "2600"]
[Result "0-1"]
[Round "01"]
[TimeControl "180+2"]
[Date "2023.02.15"]
[WhiteClock "0:00:15"]
[BlackClock "0:00:23"]

1. e4 {[%clk 0:02:57]}  c5 {[%clk 0:02:55]} 2. Nf3 {[%clk 0:02:57]}  e6 {[%clk 0:02:54]} 3. d4 {[%clk 0:02:57]}  cxd4 {[%clk 0:02:52]} 4. Bg5 {[%clk 0:02:58]}  Be7 {[%clk 0:02:48]} 5. Bxe7 {[%clk 0:02:58]}  Nxe7 {[%clk 0:02:47]} 6. Qxd4 {[%clk 0:02:58]}  O-O {[%clk 0:02:47]} 7. Qd6 {[%clk 0:02:58]}  Nbc6 {[%clk 0:02:43]} 8. Nc3 {[%clk 0:02:53]}  Qb6 {[%clk 0:02:43]} 9. O-O-O {[%clk 0:02:46]}  Qxf2 {[%clk 0:02:40]} 10. Kb1 {[%clk 0:02:45]}  Qb6 {[%clk 0:02:39]} 11. g4 {[%clk 0:02:43]}  Qb4 {[%clk 0:02:38]} 12. a3 {[%clk 0:02:35]}  Qxd6 {[%clk 0:02:38]} 13. Rxd6 {[%clk 0:02:36]}  Ng6 {[%clk 0:02:36]} 14. Bb5 {[%clk 0:02:32]}  Nge5 {[%clk 0:02:31]} 15. Bxc6 {[%clk 0:02:28]}  Nxc6 {[%clk 0:02:26]} 16. h4 {[%clk 0:02:23]}  f6 {[%clk 0:02:26]} 17. Rg1 {[%clk 0:02:20]}  Kf7 {[%clk 0:02:26]} 18. Rf1 {[%clk 0:02:20]}  Ke7 {[%clk 0:02:26]} 19. Rfd1 {[%clk 0:02:19]}  Nd8 {[%clk 0:02:21]} 20. e5 {[%clk 0:02:15]}  Nf7 {[%clk 0:02:20]} 21. exf6+ {[%clk 0:02:15]}  gxf6 {[%clk 0:02:21]} 22. R6d2 {[%clk 0:02:11]}  Rg8 {[%clk 0:02:21]} 23. Re1 {[%clk 0:02:08]}  Kf8 {[%clk 0:02:15]} 24. Ne4 {[%clk 0:02:05]}  Rxg4 {[%clk 0:02:15]} 25. Nxf6 {[%clk 0:02:03]}  Rf4 {[%clk 0:02:16]} 26. Nxh7+ {[%clk 0:02:03]}  Ke7 {[%clk 0:02:15]} 27. Nhg5 {[%clk 0:02:01]}  Nxg5 {[%clk 0:02:14]} 28. Nxg5 {[%clk 0:02:01]}  b6 {[%clk 0:02:08]} 29. h5 {[%clk 0:01:52]}  Bb7 {[%clk 0:02:04]} 30. Red1 {[%clk 0:01:47]}  Bc6 {[%clk 0:02:04]} 31. Rh2 {[%clk 0:01:40]}  Rg4 {[%clk 0:01:53]} 32. Nh3 {[%clk 0:01:22]}  Rh8 {[%clk 0:01:51]} 33. Nf2 {[%clk 0:01:20]}  Rg5 {[%clk 0:01:51]} 34. h6 {[%clk 0:01:20]}  Rg6 {[%clk 0:01:51]} 35. h7 {[%clk 0:01:15]}  Rg7 {[%clk 0:01:51]} 36. Nd3 {[%clk 0:01:12]}  Rhxh7 {[%clk 0:01:51]} 37. Rhd2 {[%clk 0:01:09]}  Rh1 {[%clk 0:01:47]} 38. Ne5 {[%clk 0:01:04]}  Rxd1+ {[%clk 0:01:47]} 39. Rxd1 {[%clk 0:01:05]}  Bd5 {[%clk 0:01:44]} 40. c4 {[%clk 0:01:04]}  Be4+ {[%clk 0:01:44]} 41. Ka2 {[%clk 0:01:04]}  d6 {[%clk 0:01:44]} 42. Nd3 {[%clk 0:01:02]}  Bxd3 {[%clk 0:01:40]} 43. Rxd3 {[%clk 0:01:03]}  e5 {[%clk 0:01:41]} 44. b4 {[%clk 0:01:01]}  Ke6 {[%clk 0:01:40]} 45. Kb3 {[%clk 0:01:02]}  e4 {[%clk 0:01:37]} 46. Rh3 {[%clk 0:01:02]}  Ke5 {[%clk 0:01:36]} 47. Kc3 {[%clk 0:01:03]}  Rf7 {[%clk 0:01:35]} 48. Rh5+ {[%clk 0:01:03]}  Rf5 {[%clk 0:01:36]} 49. Rh8 {[%clk 0:01:02]}  Rf3+ {[%clk 0:01:36]} 50. Kb2 {[%clk 0:01:00]}  e3 {[%clk 0:01:35]} 51. Kc2 {[%clk 0:00:58]}  e2 {[%clk 0:01:30]} 52. Kd2 {[%clk 0:00:54]}  Rxa3 {[%clk 0:01:30]} 53. Kxe2 {[%clk 0:00:53]}  Kd4 {[%clk 0:01:31]} 54. Rh4+ {[%clk 0:00:53]}  Kc3 {[%clk 0:01:30]} 55. b5 {[%clk 0:00:50]}  Kb4 {[%clk 0:01:30]} 56. Kd2 {[%clk 0:00:47]}  Kc5 {[%clk 0:01:26]} 57. Kc2 {[%clk 0:00:47]}  Rg3 {[%clk 0:01:24]} 58. Kb2 {[%clk 0:00:47]}  Re3 {[%clk 0:01:24]} 59. Kc2 {[%clk 0:00:47]}  Kb4 {[%clk 0:01:25]} 60. Kd2 {[%clk 0:00:46]}  Rf3 {[%clk 0:01:25]} 61. Kc2 {[%clk 0:00:47]}  Rc3+ {[%clk 0:01:25]} 62. Kb2 {[%clk 0:00:46]}  Rxc4 {[%clk 0:01:26]} 63. Rh7 {[%clk 0:00:46]}  Kxb5 {[%clk 0:01:25]} 64. Rxa7 {[%clk 0:00:47]}  d5 {[%clk 0:01:24]} 65. Rd7 {[%clk 0:00:47]}  Kc6 {[%clk 0:01:24]} 66. Rd8 {[%clk 0:00:47]}  b5 {[%clk 0:01:24]} 67. Kb3 {[%clk 0:00:47]}  Kc5 {[%clk 0:01:18]} 68. Rh8 {[%clk 0:00:45]}  Rg4 {[%clk 0:01:17]} 69. Rc8+ {[%clk 0:00:44]}  Kd4 {[%clk 0:01:17]} 70. Rb8 {[%clk 0:00:44]}  Rg3+ {[%clk 0:01:15]} 71. Kb4 {[%clk 0:00:44]}  Rg1 {[%clk 0:01:15]} 72. Rh8 {[%clk 0:00:42]}  Rb1+ {[%clk 0:01:16]} 73. Ka3 {[%clk 0:00:42]}  Kc4 {[%clk 0:01:14]} 74. Rc8+ {[%clk 0:00:42]}  Kd3 {[%clk 0:01:14]} 75. Rh8 {[%clk 0:00:41]}  d4 {[%clk 0:01:14]} 76. Ka2 {[%clk 0:00:40]}  Rb4 {[%clk 0:01:13]} 77. Ka3 {[%clk 0:00:39]}  Rb1 {[%clk 0:01:10]} 78. Ka2 {[%clk 0:00:40]}  Re1 {[%clk 0:01:07]} 79. Kb3 {[%clk 0:00:40]}  Kd2 {[%clk 0:01:00]} 80. Rh2+ {[%clk 0:00:32]}  Re2 {[%clk 0:01:00]} 81. Rh5 {[%clk 0:00:30]}  d3 {[%clk 0:01:00]} 82. Rxb5 {[%clk 0:00:30]}  Kc1 {[%clk 0:00:49]} 83. Ra5 {[%clk 0:00:23]}  Re3 {[%clk 0:00:37]} 84. Ra1+ {[%clk 0:00:20]}  Kd2 {[%clk 0:00:38]} 85. Rh1 {[%clk 0:00:19]}  Rf3 {[%clk 0:00:34]} 86. Kb2 {[%clk 0:00:17]}  Rf2 {[%clk 0:00:31]} 87. Kb3 {[%clk 0:00:14]}  Rf8 {[%clk 0:00:24]} 88. Kc4 {[%clk 0:00:14]}  Rc8+ {[%clk 0:00:22]} 89. Kd4 {[%clk 0:00:14]}  Rd8+ {[%clk 0:00:22]} 90. Kc4 {[%clk 0:00:15]}  Kc2 {[%clk 0:00:23]} 0-1


[Site "https://www.chess.com"]

[Event "Titled Tuesday Blitz February 14 Early 2023"]
[White "Chigaev, Maksim"]
[Black "Kochetov, Andrey"]
[WhiteFideId "4108116"]
[BlackFideId "24130532"]
[WhiteElo "2628"]
[BlackElo "2165"]
[Result "1-0"]
[Round "01"]
[TimeControl "180+2"]
[Date "2023.02.15"]
[WhiteClock "0:01:21"]
[BlackClock "0:00:02"]

1. e4 {[%clk 0:02:56]}  Nf6 {[%clk 0:02:54]} 2. e5 {[%clk 0:02:55]}  Nd5 {[%clk 0:02:54]} 3. d4 {[%clk 0:02:55]}  b5 {[%clk 0:02:54]} 4. Nf3 {[%clk 0:02:56]}  e6 {[%clk 0:02:51]} 5. Bxb5 {[%clk 0:02:55]}  c5 {[%clk 0:02:52]} 6. O-O {[%clk 0:02:42]}  Bb7 {[%clk 0:02:38]} 7. c4 {[%clk 0:02:34]}  Nc7 {[%clk 0:02:27]} 8. Ba4 {[%clk 0:02:29]}  Bxf3 {[%clk 0:02:15]} 9. Qxf3 {[%clk 0:02:26]}  cxd4 {[%clk 0:02:16]} 10. Nd2 {[%clk 0:02:26]}  Be7 {[%clk 0:02:02]} 11. Nb3 {[%clk 0:02:22]}  O-O {[%clk 0:01:53]} 12. Nxd4 {[%clk 0:02:19]}  d5 {[%clk 0:01:44]} 13. exd6 {[%clk 0:02:17]}  Bxd6 {[%clk 0:01:40]} 14. Rd1 {[%clk 0:02:15]}  Qe7 {[%clk 0:00:56]} 15. Be3 {[%clk 0:02:09]}  Rd8 {[%clk 0:00:19]} 16. Rac1 {[%clk 0:02:02]}  Bc5 {[%clk 0:00:16]} 17. a3 {[%clk 0:01:55]}  Nba6 {[%clk 0:00:16]} 18. Nc6 {[%clk 0:01:54]}  Rxd1+ {[%clk 0:00:16]} 19. Rxd1 {[%clk 0:01:54]}  Qh4 {[%clk 0:00:15]} 20. Bf4 {[%clk 0:01:41]}  Rc8 {[%clk 0:00:10]} 21. b4 {[%clk 0:01:36]}  Bf8 {[%clk 0:00:08]} 22. Nxa7 {[%clk 0:01:27]}  Rd8 {[%clk 0:00:06]} 23. Rxd8 {[%clk 0:01:26]}  Qxd8 {[%clk 0:00:07]} 24. g3 {[%clk 0:01:26]}  Qd4 {[%clk 0:00:06]} 25. Nb5 {[%clk 0:01:20]}  Qb6 {[%clk 0:00:02]} 26. c5 {[%clk 0:01:20]}  Qxb5 {[%clk 0:00:01]} 27. Bxb5 {[%clk 0:01:20]}  Nxb5 {[%clk 0:00:02]} 28. a4 {[%clk 0:01:20]}  Nd4 {[%clk 0:00:02]} 29. Qd3 {[%clk 0:01:20]}  Nxb4 {[%clk 0:00:01]} 30. Qxd4 {[%clk 0:01:21]}  Nd5 {[%clk 0:00:02]} 1-0


[Site "https://www.chess.com"]

[Event "Titled Tuesday Blitz February 14 Early 2023"]
[White "Bochnicka, Vladimir"]
[Black "Sychev, Klementy"]
[WhiteFideId "14943450"]
[BlackFideId "4114060"]
[WhiteElo "2327"]
[BlackElo "2547"]
[Result "0-1"]
[Round "01"]
[TimeControl "180+2"]
[Date "2023.02.15"]
[WhiteClock "0:00:23"]
[BlackClock "0:00:25"]

1. e4 {[%clk 0:03:00]}  e5 {[%clk 0:02:55]} 2. Nf3 {[%clk 0:03:00]}  Nc6 {[%clk 0:02:55]} 3. Bc4 {[%clk 0:03:01]}  Nf6 {[%clk 0:02:55]} 4. d3 {[%clk 0:03:01]}  Bc5 {[%clk 0:02:55]} 5. c3 {[%clk 0:03:01]}  O-O {[%clk 0:02:54]} 6. Nbd2 {[%clk 0:03:01]}  d5 {[%clk 0:02:54]} 7. exd5 {[%clk 0:03:02]}  Nxd5 {[%clk 0:02:51]} 8. O-O {[%clk 0:03:01]}  Nb6 {[%clk 0:02:51]} 9. Bb3 {[%clk 0:03:01]}  Qxd3 {[%clk 0:02:48]} 10. Bc2 {[%clk 0:03:01]}  Qd8 {[%clk 0:02:45]} 11. Qe2 {[%clk 0:02:42]}  Bd6 {[%clk 0:02:27]} 12. Ne4 {[%clk 0:02:30]}  f5 {[%clk 0:02:26]} 13. Neg5 {[%clk 0:02:30]}  Qf6 {[%clk 0:02:24]} 14. Rd1 {[%clk 0:01:09]}  h6 {[%clk 0:02:16]} 15. Nh3 {[%clk 0:01:06]}  Be6 {[%clk 0:01:50]} 16. Be3 {[%clk 0:00:57]}  Rae8 {[%clk 0:01:41]} 17. a4 {[%clk 0:00:54]}  Bc4 {[%clk 0:01:27]} 18. Qe1 {[%clk 0:00:52]}  e4 {[%clk 0:00:52]} 19. Nd4 {[%clk 0:00:44]}  f4 {[%clk 0:00:42]} 20. Bc1 {[%clk 0:00:35]}  e3 {[%clk 0:00:32]} 21. fxe3 {[%clk 0:00:34]}  fxe3 {[%clk 0:00:30]} 22. b3 {[%clk 0:00:24]}  Nxd4 {[%clk 0:00:26]} 23. Rxd4 {[%clk 0:00:23]}  Qf1+ {[%clk 0:00:25]} 0-1


[Site "https://www.chess.com"]

[Event "Titled Tuesday Blitz February 14 Early 2023"]
[White "Dardha, Daniel"]
[Black "surrenderPLS"]
[WhiteFideId "240990"]
[WhiteElo "2631"]
[BlackElo "2491"]
[Result "1-0"]
[Round "01"]
[TimeControl "180+2"]
[Date "2023.02.15"]
[WhiteClock "0:00:51"]
[BlackClock "0:00:14"]

1. d4 {[%clk 0:02:59]}  Nf6 {[%clk 0:02:55]} 2. Bg5 {[%clk 0:02:59]}  d5 {[%clk 0:02:54]} 3. e3 {[%clk 0:02:59]}  e6 {[%clk 0:02:53]} 4. Nd2 {[%clk 0:02:54]}  c5 {[%clk 0:02:52]} 5. c3 {[%clk 0:02:53]}  Nc6 {[%clk 0:02:51]} 6. Bd3 {[%clk 0:02:49]}  Qb6 {[%clk 0:02:50]} 7. Bxf6 {[%clk 0:02:42]}  gxf6 {[%clk 0:02:49]} 8. Qc2 {[%clk 0:02:42]}  f5 {[%clk 0:02:44]} 9. Ngf3 {[%clk 0:02:41]}  Rg8 {[%clk 0:02:40]} 10. O-O {[%clk 0:02:40]}  f4 {[%clk 0:02:32]} 11. dxc5 {[%clk 0:02:31]}  Bxc5 {[%clk 0:02:26]} 12. exf4 {[%clk 0:02:31]}  Bd6 {[%clk 0:02:05]} 13. f5 {[%clk 0:01:57]}  e5 {[%clk 0:02:00]} 14. Rfe1 {[%clk 0:01:57]}  Bd7 {[%clk 0:01:50]} 15. c4 {[%clk 0:01:52]}  Nd4 {[%clk 0:00:47]} 16. Qd1 {[%clk 0:01:22]}  f6 {[%clk 0:00:18]} 17. cxd5 {[%clk 0:01:11]}  Bxf5 {[%clk 0:00:18]} 18. Nc4 {[%clk 0:01:03]}  Qd8 {[%clk 0:00:16]} 19. Nxd6+ {[%clk 0:01:02]}  Qxd6 {[%clk 0:00:15]} 20. Nxd4 {[%clk 0:01:03]}  Bh3 {[%clk 0:00:14]} 21. Qh5+ {[%clk 0:00:51]} 1-0


[Site "https://www.chess.com"]